Workbook

Sheet Folha1
O3: Unidade: minuto | Z3: Medidas de Performance : 100 Runs
D4: média | E4: min | G4: max | H4: NPA | I4: NPA | J4: NPA | K4: NPA | L4: Tempo | M4: Tempo | N4: Nº Clientes | O4: Intervalo | P4: Tempo | Q4: Tempo | R4: Tempo | S4: Tempo | T4: Tempo | X4: M1 | Y4: M2 | Z4: M3 | AA4: M4 | AB4: M5 | AC4: M6 | AD4: M7 | AE4: M8 | AF4: M9 | AG4: M10 | AH4: M11 | AI4: M12 | AJ4: M13 | AK4: M15 | AL4: M16
H5: Cheg | I5: Tipo Serv | J5: Cabelo | K5: Barba | L5: Cabelo | M5: Barba | O5: Chegadas | P5: Serviço | Q5: Chegada | R5: Partida | S5: Fila | T5: Sistema | X5: =+G10 -> 1323.240699 | Y5: =+G11 -> 7000.300272 | Z5: =+G12 -> 8323.540971 | AA5: =+G13 -> 257.159983 | AB5: =+G14 -> 1580.400682 | AC5: =+G15 -> 100 | AD5: =+G17 -> 4.429446501 | AE5: =+G18 -> 5.266728283 | AF5: =+G19 -> 70.00300272 | AG5: =+G20 -> 83.23540971 | AH5: =+G21 -> 13.23240699 | AI5: =+G23 -> 16.27182182 | AJ5: =+G24 -> 83.72817818 | AK5: =+U106 -> 75 | AL5: =+V106 -> 52
B6: Exponencial | D6: 15 | H6: =RAND() -> 0.9909971693 | I6: =RAND() -> 0.5789968265 | J6: =RAND() -> 0.081236813 | K6: =RAND() -> 0.6102124555 | L6: =IF(I6<0.75,+$E$7+J6*($G$7-$E$7),0) -> 10.40618407 | M6: =IF(I6>0.5,SQRT(25+75*K6),0) -> 8.412249055 | N6: 1 | O6: =-$D$6*LN(1-H6) -> 70.65324337 | P6: =+L6+M6 -> 18.81843312 | Q6: 0 | R6: =+Q6+P6 -> 18.81843312 | S6: =+R6-Q6-P6 -> 0 | T6: =+R6-Q6 -> 18.81843312 | U6: =IF(L6>0,1,0) -> 1 | V6: =IF(M6>0,1,0) -> 1 | W6: 1 | X6: 1251.680934 | Y6: 5727.573341 | Z6: 6979.254275 | AA6: 31.66254729 | AB6: 1283.343481 | AC6: 100 | AD6: 4.463008872 | AE6: 5.438336952 | AF6: 57.27573341 | AG6: 69.79254275 | AH6: 12.51680934 | AI6: 2.467191969 | AJ6: 97.53280803
B7: Uniforme | E7: 10 | G7: 15 | H7: =RAND() -> 0.2061466826 | I7: 0.5780150006 | J7: 0.887773817 | K7: 0.3431357727 | L7: =IF(I7<0.75,+$E$7+J7*($G$7-$E$7),0) -> 14.43886909 | M7: =IF(I7>0.5,SQRT(25+75*K7),0) -> 7.122863396 | N7: =+N6+1 -> 2 | O7: 3.462848604 | P7: =+L7+M7 -> 21.56173248 | Q7: =+Q6+O6 -> 70.65324337 | R7: =MAX(Q7,R6)+P7 -> 92.21497585 | S7: =+R7-Q7-P7 -> 0 | T7: =+R7-Q7 -> 21.56173248 | U7: =IF(L7>0,1,0) -> 1 | V7: =IF(M7>0,1,0) -> 1 | W7: =+W6+1 -> 2 | X7: 1231.202563 | Y7: 2183.559768 | Z7: 3414.762331 | AA7: 167.7155234 | AB7: 1398.918087 | AC7: 100 | AD7: 1.560891798 | AE7: 2.441002346 | AF7: 21.83559768 | AG7: 34.14762331 | AH7: 12.31202563 | AI7: 11.98894524 | AJ7: 88.01105476
B8: Dist. Barba | H8: 0.120383778 | I8: 0.2347485414 | J8: 0.05562694271 | K8: 0.1437138747 | L8: 10.27813471 | M8: 0 | N8: =+N7+1 -> 3 | O8: 1.92404367 | P8: 10.27813471 | Q8: =+Q7+O7 -> 74.11609198 | R8: =MAX(Q8,R7)+P8 -> 102.4931106 | S8: 18.09888388 | T8: 28.37701859 | U8: 1 | V8: 0 | W8: =+W7+1 -> 3 | X8: 1259.149415 | Y8: 1667.938203 | Z8: 2927.087618 | AA8: 269.7756582 | AB8: 1528.925073 | AC8: 100 | AD8: 1.090922134 | AE8: 1.914474208 | AF8: 16.67938203 | AG8: 29.27087618 | AH8: 12.59149415 | AI8: 17.6447926 | AJ8: 82.3552074
E9: Média | G9: Run 0 | H9: 0.06195650823 | I9: 0.2006177628 | J9: 0.02585813383 | K9: 0.3522597361 | L9: 10.12929067 | M9: 0 | N9: 4 | O9: 0.9593844684 | P9: 10.12929067 | Q9: 76.04013564 | R9: 112.6224012 | S9: 26.45297492 | T9: 36.58226559 | U9: 1 | V9: 0 | W9: 4 | X9: 1248.211693 | Y9: 3238.262592 | Z9: 4486.474285 | AA9: 216.2228177 | AB9: 1464.434511 | AC9: 100 | AD9: 2.211271701 | AE9: 3.063622341 | AF9: 32.38262592 | AG9: 44.86474285 | AH9: 12.48211693 | AI9: 14.76493596 | AJ9: 85.23506404
B10: Tempo Total de Actividade (Serviço) | D10: M1 | E10: =AVERAGE(X5:X105) -> 1251.647052 | G10: =SUM(P6:P5055) -> 1323.240699 | H10: 0.7729227407 | I10: 0.09919429589 | J10: 0.6712522004 | K10: 0.6283091877 | L10: 13.356261 | M10: 0 | N10: 5 | O10: 22.23697455 | P10: 13.356261 | Q10: 76.99952011 | R10: 125.9786622 | S10: 35.62288112 | T10: 48.97914212 | U10: 1 | V10: 0 | W10: 5 | X10: 1226.734586 | Y10: 2473.031212 | Z10: 3699.765798 | AA10: 165.9563378 | AB10: 1392.690924 | AC10: 100 | AD10: 1.775721496 | AE10: 2.656559136 | AF10: 24.73031212 | AG10: 36.99765798 | AH10: 12.26734586 | AI10: 11.91623604 | AJ10: 88.08376396
B11: Tempo Total na Fila | D11: M2 | E11: =AVERAGE(Y5:Y105) -> 2762.324524 | G11: =SUM(S6:S5055) -> 7000.300272 | H11: 0.6455343066 | I11: 0.5393828879 | J11: 0.8944303086 | K11: 0.7565652201 | L11: 14.47215154 | M11: 9.0411499 | N11: 6 | O11: 15.55715569 | P11: 23.51330144 | Q11: 99.23649466 | R11: 149.4919637 | S11: 26.74216757 | T11: 50.25546902 | U11: 1 | V11: 1 | W11: 6 | X11: 1259.264022 | Y11: 4328.251724 | Z11: 5587.515746 | AA11: 191.2024821 | AB11: 1450.466504 | AC11: 100 | AD11: 2.984041142 | AE11: 3.852219772 | AF11: 43.28251724 | AG11: 55.87515746 | AH11: 12.59264022 | AI11: 13.18213703 | AJ11: 86.81786297
B12: Tempo Total no Sistema | D12: M3 | E12: =AVERAGE(Z5:Z105) -> 4013.971576 | G12: =SUM(T6:T5055) -> 8323.540971 | H12: 0.9130264534 | I12: 0.1210464851 | J12: 0.6002868751 | K12: 0.3810855156 | L12: 13.00143438 | M12: 0 | N12: 7 | O12: 36.63226903 | P12: 13.00143438 | Q12: 114.7936503 | R12: 162.4933981 | S12: 34.69831333 | T12: 47.69974771 | U12: 1 | V12: 0 | W12: 7 | X12: 1224.436296 | Y12: 5138.692266 | Z12: 6363.128562 | AA12: 142.4490377 | AB12: 1366.885334 | AC12: 100 | AD12: 3.759417222 | AE12: 4.655202894 | AF12: 51.38692266 | AG12: 63.63128562 | AH12: 12.24436296 | AI12: 10.42143288 | AJ12: 89.57856712
B13: Tempo Total de Inactividade | D13: M4 | E13: =AVERAGE(AA5:AA105) -> 277.3863345 | G13: =+G14-G10 -> 257.159983 | H13: 0.2950985207 | I13: 0.2338231926 | J13: 0.8850611883 | K13: 0.150773357 | L13: 14.42530594 | M13: 0 | N13: 8 | O13: 5.245458474 | P13: 14.42530594 | Q13: 151.4259194 | R13: 176.918704 | S13: 11.06747868 | T13: 25.49278462 | U13: 1 | V13: 0 | W13: 8 | X13: 1275.640431 | Y13: 2020.646741 | Z13: 3296.287171 | AA13: 276.6665518 | AB13: 1552.306983 | AC13: 100 | AD13: 1.301705631 | AE13: 2.123476354 | AF13: 20.20646741 | AG13: 32.96287171 | AH13: 12.75640431 | AI13: 17.82292774 | AJ13: 82.17707226
B14: Tempo Total de Simulação | D14: M5 | E14: =AVERAGE(AB5:AB105) -> 1529.033386 | G14: =+MAX(R6:R5055) -> 1580.400682 | H14: 0.8761998884 | I14: 0.7148476396 | J14: 0.4757787875 | K14: 0.8561510153 | L14: 12.37889394 | M14: 9.445174755 | N14: 9 | O14: 31.33630526 | P14: 21.82406869 | Q14: 156.6713778 | R14: 198.7427727 | S14: 20.24732615 | T14: 42.07139484 | U14: 1 | V14: 1 | W14: 9 | X14: 1265.523974 | Y14: 1801.815539 | Z14: 3067.339513 | AA14: 311.2857248 | AB14: 1576.809699 | AC14: 100 | AD14: 1.14269689 | AE14: 1.945281993 | AF14: 18.01815539 | AG14: 30.67339513 | AH14: 12.65523974 | AI14: 19.74148973 | AJ14: 80.25851027
B15: Nº Clientes | D15: M6 | E15: =AVERAGE(AC5:AC105) -> 100 | G15: =MAX(N6:N105) -> 100 | H15: 0.1676427557 | I15: 0.1451216432 | J15: 0.8716160371 | K15: 0.8688599705 | L15: 14.35808019 | M15: 0 | N15: 10 | O15: 2.752403253 | P15: 14.35808019 | Q15: 188.0076831 | R15: 213.1008529 | S15: 10.73508958 | T15: 25.09316976 | U15: 1 | V15: 0 | W15: 10 | X15: 1224.224574 | Y15: 1848.269335 | Z15: 3072.493909 | AA15: 213.4886227 | AB15: 1437.713197 | AC15: 100 | AD15: 1.285561918 | AE15: 2.137070116 | AF15: 18.48269335 | AG15: 30.72493909 | AH15: 12.24224574 | AI15: 14.84918015 | AJ15: 85.15081985
H16: 0.05495463266 | I16: 0.1767161362 | J16: 0.1979852931 | K16: 0.8592827879 | L16: 10.98992647 | M16: 0 | N16: 11 | O16: 0.8478351731 | P16: 10.98992647 | Q16: 190.7600864 | R16: 224.0907793 | S16: 22.34076651 | T16: 33.33069297 | U16: 1 | V16: 0 | W16: 11 | X16: 1238.424145 | Y16: 1161.913205 | Z16: 2400.33735 | AA16: 595.9735564 | AB16: 1834.397701 | AC16: 100 | AD16: 0.6334031082 | AE16: 1.308515241 | AF16: 11.61913205 | AG16: 24.0033735 | AH16: 12.38424145 | AI16: 32.48878671 | AJ16: 67.51121329
B17: Comprimento médio fila | D17: M7 | E17: =AVERAGE(AD5:AD105) -> 1.885437253 | G17: =+G11/G14 -> 4.429446501 | H17: 0.8240217958 | I17: 0.8073129764 | J17: 0.6520335411 | K17: 0.03345089407 | L17: 0 | M17: 5.244884847 | N17: 12 | O17: 26.06092697 | P17: 5.244884847 | Q17: 191.6079215 | R17: 229.3356642 | S17: 32.4828578 | T17: 37.72774265 | U17: 0 | V17: 1 | W17: 12 | X17: 1276.175813 | Y17: 1138.293152 | Z17: 2414.468965 | AA17: 323.7715874 | AB17: 1599.9474 | AC17: 100 | AD17: 0.7114566093 | AE17: 1.509092715 | AF17: 11.38293152 | AG17: 24.14468965 | AH17: 12.76175813 | AI17: 20.23638948 | AJ17: 79.76361052
B18: Nº médio Cl. Sistema | D18: M8 | E18: =AVERAGE(AE5:AE105) -> 2.710236372 | G18: =+G12/G14 -> 5.266728283 | H18: 0.7039737074 | I18: 0.1790237611 | J18: 0.5808654491 | K18: 0.2575907419 | L18: 12.90432725 | M18: 0 | N18: 13 | O18: 18.25960503 | P18: 12.90432725 | Q18: 217.6688485 | R18: 242.2399914 | S18: 11.66681568 | T18: 24.57114293 | U18: 1 | V18: 0 | W18: 13 | X18: 1261.567109 | Y18: 6189.28187 | Z18: 7450.84898 | AA18: 103.2599004 | AB18: 1364.82701 | AC18: 100 | AD18: 4.534847146 | AE18: 5.459189279 | AF18: 61.8928187 | AG18: 74.5084898 | AH18: 12.61567109 | AI18: 7.565786699 | AJ18: 92.4342133
B19: Tempo médio na fila | D19: M9 | E19: =AVERAGE(AF5:AF105) -> 27.62324524 | G19: =+G11/G15 -> 70.00300272 | H19: 0.7997117918 | I19: 0.09111460767 | J19: 0.1235723829 | K19: 0.5685057902 | L19: 10.61786191 | M19: 0 | N19: 14 | O19: 24.11996863 | P19: 10.61786191 | Q19: 235.9284535 | R19: 252.8578533 | S19: 6.311537892 | T19: 16.92939981 | U19: 1 | V19: 0 | W19: 14 | X19: 1244.052822 | Y19: 2767.746331 | Z19: 4011.799153 | AA19: 217.329172 | AB19: 1461.381994 | AC19: 100 | AD19: 1.893923932 | AE19: 2.745209104 | AF19: 27.67746331 | AG19: 40.11799153 | AH19: 12.44052822 | AI19: 14.87148281 | AJ19: 85.12851719
B20: Tempo médio no Sistema | D20: M10 | E20: =AVERAGE(AG5:AG105) -> 40.13971576 | G20: =+G12/G15 -> 83.23540971 | H20: 0.9485820861 | I20: 0.6974017252 | J20: 0.1908730223 | K20: 0.07870890558 | L20: 10.95436511 | M20: 5.559061784 | N20: 15 | O20: 44.51652973 | P20: 16.5134269 | Q20: 260.0484222 | R20: 276.5618491 | S20: 0 | T20: 16.5134269 | U20: 1 | V20: 1 | W20: 15 | X20: 1258.728484 | Y20: 2064.883096 | Z20: 3323.61158 | AA20: 301.664618 | AB20: 1560.393102 | AC20: 100 | AD20: 1.323309552 | AE20: 2.129983513 | AF20: 20.64883096 | AG20: 33.2361158 | AH20: 12.58728484 | AI20: 19.33260392 | AJ20: 80.66739608
B21: Tempo médio no Serviço | D21: M11 | E21: =AVERAGE(AH5:AH105) -> 12.51647052 | G21: =+G10/G15 -> 13.23240699 | H21: 0.6608992607 | I21: 0.2936092396 | J21: 0.7292765787 | K21: 0.6156784672 | L21: 13.64638289 | M21: 0 | N21: 16 | O21: 16.22187075 | P21: 13.64638289 | Q21: 304.5649519 | R21: 318.2113348 | S21: 0 | T21: 13.64638289 | U21: 1 | V21: 0 | W21: 16 | X21: 1241.041923 | Y21: 1981.199955 | Z21: 3222.241878 | AA21: 165.6573094 | AB21: 1406.699232 | AC21: 100 | AD21: 1.408403381 | AE21: 2.290640248 | AF21: 19.81199955 | AG21: 32.22241878 | AH21: 12.41041923 | AI21: 11.77631335 | AJ21: 88.22368665
H22: 0.8465336753 | I22: 0.2826148524 | J22: 0.8965200945 | K22: 0.3964979642 | L22: 14.48260047 | M22: 0 | N22: 17 | O22: 28.11411179 | P22: 14.48260047 | Q22: 320.7868226 | R22: 335.2694231 | S22: 0 | T22: 14.48260047 | U22: 1 | V22: 0 | W22: 17 | X22: 1240.474123 | Y22: 1832.470869 | Z22: 3072.944992 | AA22: 352.0962818 | AB22: 1592.570405 | AC22: 100 | AD22: 1.150637274 | AE22: 1.929550482 | AF22: 18.32470869 | AG22: 30.72944992 | AH22: 12.40474123 | AI22: 22.1086792 | AJ22: 77.8913208
B23: % Inactividade do Sistema | D23: M12 | E23: =AVERAGE(AI5:AI105) -> 17.52008807 | G23: =+G13/G14*100 -> 16.27182182 | H23: 0.6775504735 | I23: 0.6699527838 | J23: 0.326148681 | K23: 0.08926691786 | L23: 11.63074341 | M23: 5.629832932 | N23: 18 | O23: 16.97712993 | P23: 17.26057634 | Q23: 348.9009344 | R23: 366.1615108 | S23: 0 | T23: 17.26057634 | U23: 1 | V23: 1 | W23: 18 | X23: 1257.539714 | Y23: 3108.797485 | Z23: 4366.337199 | AA23: 110.0376066 | AB23: 1367.577321 | AC23: 100 | AD23: 2.273215151 | AE23: 3.192753443 | AF23: 31.08797485 | AG23: 43.66337199 | AH23: 12.57539714 | AI23: 8.046170764 | AJ23: 91.95382924
B24: %Utilização do Sistema | D24: M13 | E24: =AVERAGE(AJ5:AJ105) -> 82.47991193 | G24: =+G10/G14*100 -> 83.72817818 | H24: 0.8158384641 | I24: 0.7725297029 | J24: 0.07317927619 | K24: 0.0197712781 | L24: 0 | M24: 5.146148643 | N24: 19 | O24: 25.37912991 | P24: 5.146148643 | Q24: 365.8780644 | R24: 371.3076594 | S24: 0.2834464058 | T24: 5.429595049 | U24: 0 | V24: 1 | W24: 19 | X24: 1270.301752 | Y24: 1215.455389 | Z24: 2485.757141 | AA24: 399.9283337 | AB24: 1670.230086 | AC24: 100 | AD24: 0.7277173362 | AE24: 1.488272282 | AF24: 12.15455389 | AG24: 24.85757141 | AH24: 12.70301752 | AI24: 23.94450544 | AJ24: 76.05549456
H25: 0.3546888668 | I25: 0.496162653 | J25: 0.4270280638 | K25: 0.3655056863 | L25: 12.13514032 | M25: 0 | N25: 20 | O25: 6.570340523 | P25: 12.13514032 | Q25: 391.2571943 | R25: 403.3923346 | S25: 1.953992523e-14 | T25: 12.13514032 | U25: 1 | V25: 0 | W25: 20 | X25: 1281.872679 | Y25: 2504.564201 | Z25: 3786.43688 | AA25: 325.7203954 | AB25: 1607.593074 | AC25: 100 | AD25: 1.557959064 | AE25: 2.355345355 | AF25: 25.04564201 | AG25: 37.8643688 | AH25: 12.81872679 | AI25: 20.2613709 | AJ25: 79.7386291
B26: Receitas por hora | G26: =(10*$U$106+5*$V$105)/$R$105*60 -> 28.66361709 | H26: 0.6528305796 | I26: 0.3676677567 | J26: 0.5673857192 | K26: 0.609559523 | L26: 12.8369286 | M26: 0 | N26: 21 | O26: 15.86913562 | P26: 12.8369286 | Q26: 397.8275348 | R26: 416.2292632 | S26: 5.564799796 | T26: 18.40172839 | U26: 1 | V26: 0 | W26: 21 | X26: 1235.061034 | Y26: 3956.593944 | Z26: 5191.654978 | AA26: 166.6799636 | AB26: 1401.740998 | AC26: 100 | AD26: 2.822628396 | AE26: 3.703719151 | AF26: 39.56593944 | AG26: 51.91654978 | AH26: 12.35061034 | AI26: 11.89092449 | AJ26: 88.10907551
B27: Receitas por dia | G27: =(10*$U$106+5*$V$105)/$R$105*60*7 -> 200.6453196 | H27: 0.9153502693 | I27: 0.2927199553 | J27: 0.6037596448 | K27: 0.09009953139 | L27: 13.01879822 | M27: 0 | N27: 22 | O27: 37.03850028 | P27: 13.01879822 | Q27: 413.6966704 | R27: 429.2480614 | S27: 2.532592769 | T27: 15.55139099 | U27: 1 | V27: 0 | W27: 22 | X27: 1249.455092 | Y27: 1559.694014 | Z27: 2809.149106 | AA27: 489.3468467 | AB27: 1738.801939 | AC27: 100 | AD27: 0.8969934869 | AE27: 1.615565893 | AF27: 15.59694014 | AG27: 28.09149106 | AH27: 12.49455092 | AI27: 28.14275944 | AJ27: 71.85724056
H28: 0.4577592276 | I28: 0.9129958923 | J28: 0.7394621191 | K28: 0.8219109068 | L28: 0 | M28: =IF(I28>0.5,SQRT(25+75*RAND()),0) -> 8.791850615 | N28: 23 | O28: 9.1806772 | P28: 8.791850615 | Q28: 450.7351707 | R28: 459.5270213 | S28: 0 | T28: 8.791850615 | U28: 0 | V28: 1 | W28: 23 | X28: 1224.154903 | Y28: 5564.255288 | Z28: 6788.410191 | AA28: 105.0389659 | AB28: 1329.193869 | AC28: 100 | AD28: 4.186187899 | AE28: 5.107163335 | AF28: 55.64255288 | AG28: 67.88410191 | AH28: 12.24154903 | AI28: 7.902456401 | AJ28: 92.0975436
B29: Nº de Runs = 101 | H29: 0.3252121319 | I29: 0.06883049348 | J29: 0.3516025162 | K29: 0.7546861779 | L29: 11.75801258 | M29: 0 | N29: 24 | O29: 5.900353605 | P29: 11.75801258 | Q29: 459.9158479 | R29: 471.6738605 | S29: 1.421085472e-14 | T29: 11.75801258 | U29: 1 | V29: 0 | W29: 24 | X29: 1248.190178 | Y29: 3290.350428 | Z29: 4538.540606 | AA29: 250.0287882 | AB29: 1498.218966 | AC29: 100 | AD29: 2.196174593 | AE29: 3.029290584 | AF29: 32.90350428 | AG29: 45.38540606 | AH29: 12.48190178 | AI29: 16.68840096 | AJ29: 83.31159904
H30: 0.9378972332 | I30: 0.09652360583 | J30: 0.3372694266 | K30: 0.04017646742 | L30: 11.68634713 | M30: 0 | N30: 25 | O30: 41.68447105 | P30: 11.68634713 | Q30: 465.8162015 | R30: 483.3602076 | S30: 5.857658976 | T30: 17.54400611 | U30: 1 | V30: 0 | W30: 25 | X30: 1252.600167 | Y30: 3973.729947 | Z30: 5226.330114 | AA30: 74.37605662 | AB30: 1326.976224 | AC30: 100 | AD30: 2.994575091 | AE30: 3.938525815 | AF30: 39.73729947 | AG30: 52.26330114 | AH30: 12.52600167 | AI30: 5.604927599 | AJ30: 94.3950724
H31: 0.3040650064 | I31: 0.2622521275 | J31: 0.8028824171 | K31: 0.1766406449 | L31: 14.01441209 | M31: 0 | N31: 26 | O31: 5.437485345 | P31: 14.01441209 | Q31: 507.5006726 | R31: 521.5150846 | S31: 0 | T31: 14.01441209 | U31: 1 | V31: 0 | W31: 26 | X31: 1246.579717 | Y31: 1325.855229 | Z31: 2572.434946 | AA31: 454.8328447 | AB31: 1701.412562 | AC31: 100 | AD31: 0.7792673327 | AE31: 1.511940727 | AF31: 13.25855229 | AG31: 25.72434946 | AH31: 12.46579717 | AI31: 26.73266055 | AJ31: 73.26733945
H32: 0.2604770143 | I32: 0.7182148207 | J32: 0.02652249603 | K32: 0.07291177521 | L32: 10.13261248 | M32: 9.917275712 | N32: 27 | O32: 4.526248718 | P32: 20.04988819 | Q32: 512.9381579 | R32: 541.5649728 | S32: 8.57692674 | T32: 28.62681493 | U32: 1 | V32: 1 | W32: 27 | X32: 1261.512269 | Y32: 2689.400069 | Z32: 3950.912338 | AA32: 288.8875239 | AB32: 1550.399793 | AC32: 100 | AD32: 1.734649399 | AE32: 2.548318412 | AF32: 26.89400069 | AG32: 39.50912338 | AH32: 12.61512269 | AI32: 18.63309871 | AJ32: 81.36690129
H33: 0.673415818 | I33: 0.6841668991 | J33: 0.5905264148 | K33: 0.911361988 | L33: 12.95263207 | M33: 9.794513552 | N33: 28 | O33: 16.78601298 | P33: 22.74714563 | Q33: 517.4644066 | R33: 564.3121185 | S33: 24.10056621 | T33: 46.84771184 | U33: 1 | V33: 1 | W33: 28 | X33: 1281.14752 | Y33: 2185.147769 | Z33: 3466.295289 | AA33: 184.1133458 | AB33: 1465.260866 | AC33: 100 | AD33: 1.491302894 | AE33: 2.365650629 | AF33: 21.85147769 | AG33: 34.66295289 | AH33: 12.8114752 | AI33: 12.56522645 | AJ33: 87.43477355
H34: 0.2373743931 | I34: 0.6947882321 | J34: 0.8744993354 | K34: 0.1090003724 | L34: 14.37249668 | M34: 7.436216592 | N34: 29 | O34: 4.064820805 | P34: 21.80871327 | Q34: 534.2504196 | R34: 586.1208317 | S34: 30.06169886 | T34: 51.87041213 | U34: 1 | V34: 1 | W34: 29 | X34: 1253.840164 | Y34: 3379.982207 | Z34: 4633.822371 | AA34: 125.4643954 | AB34: 1379.30456 | AC34: 100 | AD34: 2.450497378 | AE34: 3.35953531 | AF34: 33.79982207 | AG34: 46.33822371 | AH34: 12.53840164 | AI34: 9.096206819 | AJ34: 90.90379318
H35: =RAND() -> 0.5250710358 | I35: =RAND() -> 0.7871343463 | J35: =RAND() -> 0.1268759434 | K35: =RAND() -> 0.372485152 | L35: 0 | M35: 5.267122441 | N35: 30 | O35: 11.16885053 | P35: 5.267122441 | Q35: 538.3152404 | R35: 591.3879542 | S35: 47.80559133 | T35: 53.07271377 | U35: 0 | V35: 1 | W35: 30 | X35: 1255.409915 | Y35: 2673.24714 | Z35: 3928.657055 | AA35: 425.1062783 | AB35: 1680.516193 | AC35: 100 | AD35: 1.590729772 | AE35: 2.337768045 | AF35: 26.7324714 | AG35: 39.28657055 | AH35: 12.55409915 | AI35: 25.29617269 | AJ35: 74.70382731
H36: =RAND() -> 0.9871649234 | I36: 0.2911315075 | J36: 0.1586079005 | K36: 0.436025861 | L36: 10.7930395 | M36: 0 | N36: 31 | O36: 65.33360246 | P36: 10.7930395 | Q36: 549.4840909 | R36: 602.1809937 | S36: 41.90386324 | T36: 52.69690274 | U36: 1 | V36: 0 | W36: 31 | X36: 1258.533988 | Y36: 2282.775227 | Z36: 3541.309215 | AA36: 109.0599312 | AB36: 1367.593919 | AC36: 100 | AD36: 1.669190829 | AE36: 2.589444985 | AF36: 22.82775227 | AG36: 35.41309215 | AH36: 12.58533988 | AI36: 7.974584394 | AJ36: 92.02541561
H37: 0.6637828487 | I37: 0.2919898941 | J37: 0.5374035161 | K37: 0.436038894 | L37: 12.68701758 | M37: 0 | N37: 32 | O37: 16.34997066 | P37: 12.68701758 | Q37: 614.8176934 | R37: 627.504711 | S37: 0 | T37: 12.68701758 | U37: 1 | V37: 0 | W37: 32 | X37: 1247.58508 | Y37: 3269.730024 | Z37: 4517.315104 | AA37: 205.0695656 | AB37: 1452.654646 | AC37: 100 | AD37: 2.250865361 | AE37: 3.109696525 | AF37: 32.69730024 | AG37: 45.17315104 | AH37: 12.4758508 | AI37: 14.11688361 | AJ37: 85.88311639
H38: 0.8314726309 | I38: 0.3406365908 | J38: 0.2377028905 | K38: 0.6964816789 | L38: 11.18851445 | M38: 0 | N38: 33 | O38: 26.70985672 | P38: 11.18851445 | Q38: 631.167664 | R38: 642.3561785 | S38: 3.197442311e-14 | T38: 11.18851445 | U38: 1 | V38: 0 | W38: 33 | X38: 1249.599869 | Y38: 3352.76519 | Z38: 4602.365059 | AA38: 74.15460297 | AB38: 1323.754472 | AC38: 100 | AD38: 2.532769679 | AE38: 3.476751283 | AF38: 33.5276519 | AG38: 46.02365059 | AH38: 12.49599869 | AI38: 5.601839657 | AJ38: 94.39816034
H39: 0.886503065 | I39: 0.4255748607 | J39: 0.5253653715 | K39: 0.1286250127 | L39: 12.62682686 | M39: 0 | N39: 34 | O39: 32.63969171 | P39: 12.62682686 | Q39: 657.8775208 | R39: 670.5043476 | S39: 5.151434834e-14 | T39: 12.62682686 | U39: 1 | V39: 0 | W39: 34 | X39: 1251.505867 | Y39: 1344.155595 | Z39: 2595.661462 | AA39: 335.9990407 | AB39: 1587.504908 | AC39: 100 | AD39: 0.8467095683 | AE39: 1.635057284 | AF39: 13.44155595 | AG39: 25.95661462 | AH39: 12.51505867 | AI39: 21.16522847 | AJ39: 78.83477153
H40: 0.9359598386 | I40: 0.8294066623 | J40: 0.7299615598 | K40: 0.352704391 | L40: 0 | M40: 8.475364996 | N40: 35 | O40: 41.22367306 | P40: 8.475364996 | Q40: 690.5172125 | R40: 698.9925775 | S40: -3.730349363e-14 | T40: 8.475364996 | U40: 0 | V40: 1 | W40: 35 | X40: 1247.389413 | Y40: 6408.903068 | Z40: 7656.292481 | AA40: 154.9977685 | AB40: 1402.387182 | AC40: 100 | AD40: 4.56999547 | AE40: 5.459471236 | AF40: 64.08903068 | AG40: 76.56292481 | AH40: 12.47389413 | AI40: 11.05242336 | AJ40: 88.94757664
H41: 0.6272021841 | I41: 0.494194437 | J41: 0.2848775012 | K41: 0.2282683851 | L41: 11.42438751 | M41: 0 | N41: 36 | O41: 14.80078582 | P41: 11.42438751 | Q41: 731.7408855 | R41: 743.165273 | S41: 1.776356839e-14 | T41: 11.42438751 | U41: 1 | V41: 0 | W41: 36 | X41: 1249.15152 | Y41: 1760.776157 | Z41: 3009.927677 | AA41: 358.528509 | AB41: 1607.680029 | AC41: 100 | AD41: 1.095227984 | AE41: 1.872218117 | AF41: 17.60776157 | AG41: 30.09927677 | AH41: 12.4915152 | AI41: 22.30098667 | AJ41: 77.69901333
H42: 0.1004417299 | I42: 0.8048389394 | J42: 0.9016348509 | K42: 0.1290743819 | L42: 0 | M42: 8.76842813 | N42: 37 | O42: 1.587771707 | P42: 8.76842813 | Q42: 746.5416714 | R42: 755.3100995 | S42: -1.953992523e-14 | T42: 8.76842813 | U42: 0 | V42: 1 | W42: 37 | X42: 1263.400832 | Y42: 5506.003538 | Z42: 6769.40437 | AA42: 308.8095437 | AB42: 1572.210375 | AC42: 100 | AD42: 3.502078109 | AE42: 4.305660664 | AF42: 55.06003538 | AG42: 67.6940437 | AH42: 12.63400832 | AI42: 19.64174442 | AJ42: 80.35825558
H43: 0.4080128474 | I43: 0.9755902701 | J43: 0.1025068915 | K43: 0.1832516202 | L43: 0 | M43: 7.31415876 | N43: 38 | O43: 7.864055191 | P43: 7.31415876 | Q43: 748.1294431 | R43: 762.6242582 | S43: 7.180656422 | T43: 14.49481518 | U43: 0 | V43: 1 | W43: 38 | X43: 1280.735906 | Y43: 1239.143538 | Z43: 2519.879444 | AA43: 342.2471488 | AB43: 1622.983055 | AC43: 100 | AD43: 0.7634975206 | AE43: 1.552622153 | AF43: 12.39143538 | AG43: 25.19879444 | AH43: 12.80735906 | AI43: 21.08753679 | AJ43: 78.91246321
H44: 0.08171517115 | I44: 0.5233413358 | J44: 0.307469482 | K44: 0.5288666244 | L44: 11.53734741 | M44: 9.395313682 | N44: 39 | O44: 1.278714981 | P44: 20.93266109 | Q44: 755.9934983 | R44: 783.5569193 | S44: 6.630759991 | T44: 27.56342108 | U44: 1 | V44: 1 | W44: 39 | X44: 1243.616355 | Y44: 1564.423348 | Z44: 2808.039703 | AA44: 500.9464595 | AB44: 1744.562815 | AC44: 100 | AD44: 0.8967423442 | AE44: 1.609595068 | AF44: 15.64423348 | AG44: 28.08039703 | AH44: 12.43616355 | AI44: 28.71472757 | AJ44: 71.28527243
H45: 0.1751148581 | I45: 0.8458706467 | J45: 0.07745602135 | K45: 0.654736823 | L45: 0 | M45: 6.552678319 | N45: 40 | O45: 2.887666865 | P45: 6.552678319 | Q45: 757.2722132 | R45: 790.1095977 | S45: 26.2847061 | T45: 32.83738442 | U45: 0 | V45: 1 | W45: 40 | X45: 1252.978064 | Y45: 2421.810022 | Z45: 3674.788086 | AA45: 186.3289862 | AB45: 1439.30705 | AC45: 100 | AD45: 1.682622219 | AE45: 2.553164793 | AF45: 24.21810022 | AG45: 36.74788086 | AH45: 12.52978064 | AI45: 12.94574262 | AJ45: 87.05425738
H46: 0.853237036 | I46: 0.8782731207 | J46: 0.7676913325 | K46: 0.9858277435 | L46: 0 | M46: 7.508537543 | N46: 41 | O46: 28.78404726 | P46: 7.508537543 | Q46: 760.1598801 | R46: 797.6181352 | S46: 29.94971756 | T46: 37.4582551 | U46: 0 | V46: 1 | W46: 41 | X46: 1260.592617 | Y46: 2577.931387 | Z46: 3838.524004 | AA46: 159.3030436 | AB46: 1419.895661 | AC46: 100 | AD46: 1.815578045 | AE46: 2.703384559 | AF46: 25.77931387 | AG46: 38.38524004 | AH46: 12.60592617 | AI46: 11.21934858 | AJ46: 88.78065142
H47: 0.5240570963 | I47: 0.9954922534 | J47: 0.5452889541 | K47: 0.5165325874 | L47: 0 | M47: 8.113830124 | N47: 42 | O47: 11.13686073 | P47: 8.113830124 | Q47: 788.9439274 | R47: 805.7319653 | S47: 8.674207843 | T47: 16.78803797 | U47: 0 | V47: 1 | W47: 42 | X47: 1241.701378 | Y47: 1193.286806 | Z47: 2434.988184 | AA47: 507.826194 | AB47: 1749.527572 | AC47: 100 | AD47: 0.6820623033 | AE47: 1.391797547 | AF47: 11.93286806 | AG47: 24.34988184 | AH47: 12.41701378 | AI47: 29.02647561 | AJ47: 70.97352439
H48: 0.4530450994 | I48: 0.08704250601 | J48: 0.6930057625 | K48: 0.08973658459 | L48: 13.46502881 | M48: 0 | N48: 43 | O48: 9.050833928 | P48: 13.46502881 | Q48: 800.0807881 | R48: 819.1969941 | S48: 5.651177233 | T48: 19.11620605 | U48: 1 | V48: 0 | W48: 43 | X48: 1247.230274 | Y48: 935.897595 | Z48: 2183.127869 | AA48: 344.0347615 | AB48: 1591.265036 | AC48: 100 | AD48: 0.5881468982 | AE48: 1.371944849 | AF48: 9.35897595 | AG48: 21.83127869 | AH48: 12.47230274 | AI48: 21.62020491 | AJ48: 78.37979509
H49: 0.4888158158 | I49: 0.9674218658 | J49: 0.7285310863 | K49: 0.2559002559 | L49: 0 | M49: 9.398772843 | N49: 44 | O49: 10.06537972 | P49: 9.398772843 | Q49: 809.131622 | R49: 828.595767 | S49: 10.06537212 | T49: 19.46414496 | U49: 0 | V49: 1 | W49: 44 | X49: 1253.920375 | Y49: 5883.236887 | Z49: 7137.157262 | AA49: 91.47843245 | AB49: 1345.398808 | AC49: 100 | AD49: 4.372857217 | AE49: 5.304863673 | AF49: 58.83236887 | AG49: 71.37157262 | AH49: 12.53920375 | AI49: 6.799354356 | AJ49: 93.20064564
H50: =RAND() -> 0.4135843132 | I50: 0.1771906704 | J50: =RAND() -> 0.3438409443 | K50: 0.3807982906 | L50: 11.71920472 | M50: 0 | N50: 45 | O50: 8.005895666 | P50: 11.71920472 | Q50: 819.1970017 | R50: 840.3149717 | S50: 9.398765236 | T50: 21.11796996 | U50: 1 | V50: 0 | W50: 45 | X50: 1227.388001 | Y50: 1618.653885 | Z50: 2846.041885 | AA50: 318.7576207 | AB50: 1546.145621 | AC50: 100 | AD50: 1.046896141 | AE50: 1.840733399 | AF50: 16.18653885 | AG50: 28.46041885 | AH50: 12.27388001 | AI50: 20.61627419 | AJ50: 79.38372581
H51: 0.5771760972 | I51: 0.6802237995 | J51: 0.6531371803 | K51: 0.361442617 | L51: 13.2656859 | M51: 8.533510432 | N51: =+N50+1 -> 46 | O51: 12.91199238 | P51: 21.79919633 | Q51: =+Q50+O50 -> 827.2028974 | R51: =MAX(Q51,R50)+P51 -> 862.114168 | S51: =+R51-Q51-P51 -> 13.11207429 | T51: =+R51-Q51 -> 34.91127063 | U51: 1 | V51: 1 | W51: 46 | X51: 1250.432521 | Y51: 2787.602539 | Z51: 4038.03506 | AA51: 250.208386 | AB51: 1500.640907 | AC51: 100 | AD51: 1.857607991 | AE51: 2.690873641 | AF51: 27.87602539 | AG51: 40.3803506 | AH51: 12.50432521 | AI51: 16.67343499 | AJ51: 83.32656501
H52: =RAND() -> 0.5119052015 | I52: 0.2147745554 | J52: 0.6927923178 | K52: 0.5785437888 | L52: 13.46396159 | M52: 0 | N52: =+N51+1 -> 47 | O52: 10.75868449 | P52: 13.46396159 | Q52: =+Q51+O51 -> 840.1148898 | R52: =MAX(Q52,R51)+P52 -> 875.5781296 | S52: =+R52-Q52-P52 -> 21.99927825 | T52: =+R52-Q52 -> 35.46323983 | U52: 1 | V52: 0 | W52: 47 | X52: 1241.364069 | Y52: 2795.036041 | Z52: 4036.40011 | AA52: 186.8869122 | AB52: 1428.250981 | AC52: 100 | AD52: 1.956964202 | AE52: 2.826114012 | AF52: 27.95036041 | AG52: 40.3640011 | AH52: 12.41364069 | AI52: 13.085019 | AJ52: 86.914981
H53: 0.4178486677 | I53: 0.6293820872 | J53: 0.07864050581 | K53: 0.7439047465 | L53: 10.39320253 | M53: 5.324911593 | N53: =+N52+1 -> 48 | O53: 8.115372658 | P53: 15.71811412 | Q53: =+Q52+O52 -> 850.8735743 | R53: =MAX(Q53,R52)+P53 -> 891.2962437 | S53: =+R53-Q53-P53 -> 24.70455534 | T53: =+R53-Q53 -> 40.42266946 | U53: 1 | V53: 1 | W53: 48 | X53: 1267.280878 | Y53: 4074.508096 | Z53: 5341.788975 | AA53: 316.1878971 | AB53: 1583.468776 | AC53: 100 | AD53: 2.573153421 | AE53: 3.373472882 | AF53: 40.74508096 | AG53: 53.41788975 | AH53: 12.67280878 | AI53: 19.96805381 | AJ53: 80.03194619
H54: 0.6676781474 | I54: 0.2425154329 | J54: 0.4496239883 | K54: 0.9428477542 | L54: 12.24811994 | M54: 0 | N54: =+N53+1 -> 49 | O54: 16.52477016 | P54: 12.24811994 | Q54: =+Q53+O53 -> 858.9889469 | R54: =MAX(Q54,R53)+P54 -> 903.5443637 | S54: =+R54-Q54-P54 -> 32.30729681 | T54: =+R54-Q54 -> 44.55541675 | U54: 1 | V54: 0 | W54: 49 | X54: 1251.533662 | Y54: 7427.981213 | Z54: 8679.514875 | AA54: 26.71159575 | AB54: 1278.245258 | AC54: 100 | AD54: 5.811076683 | AE54: 6.790179602 | AF54: 74.27981213 | AG54: 86.79514875 | AH54: 12.51533662 | AI54: 2.089708183 | AJ54: 97.91029182
H55: 0.8295290838 | I55: 0.6835041619 | J55: 0.488541607 | K55: 0.2202781546 | L55: 12.44270803 | M55: 6.36975934 | N55: =+N54+1 -> 50 | O55: 26.53785864 | P55: 18.81246737 | Q55: =+Q54+O54 -> 875.5137171 | R55: =MAX(Q55,R54)+P55 -> 922.3568311 | S55: =+R55-Q55-P55 -> 28.03064658 | T55: =+R55-Q55 -> 46.84311396 | U55: 1 | V55: 1 | W55: 50 | X55: 1239.378451 | Y55: 1883.255366 | Z55: 3122.633816 | AA55: 281.6646136 | AB55: 1521.043064 | AC55: 100 | AD55: 1.238134153 | AE55: 2.052955561 | AF55: 18.83255366 | AG55: 31.22633816 | AH55: 12.39378451 | AI55: 18.51785924 | AJ55: 81.48214076
H56: 0.258167701 | I56: 0.7364796765 | J56: 0.1055438898 | K56: 0.5063135477 | L56: 10.52771945 | M56: 9.489793659 | N56: =+N55+1 -> 51 | O56: 4.479481103 | P56: 20.01751311 | Q56: =+Q55+O55 -> 902.0515757 | R56: =MAX(Q56,R55)+P56 -> 942.3743442 | S56: =+R56-Q56-P56 -> 20.30525532 | T56: =+R56-Q56 -> 40.32276842 | U56: 1 | V56: 1 | W56: 51 | X56: 1253.355111 | Y56: 1258.303721 | Z56: 2511.658831 | AA56: 417.7218084 | AB56: 1671.076919 | AC56: 100 | AD56: 0.7529897075 | AE56: 1.503018085 | AF56: 12.58303721 | AG56: 25.11658831 | AH56: 12.53355111 | AI56: 24.99716223 | AJ56: 75.00283777
H57: 0.3773329032 | I57: 0.3177784647 | J57: 0.7310285781 | K57: 0.1579387398 | L57: 13.65514289 | M57: 0 | N57: 52 | O57: 7.10614887 | P57: 13.65514289 | Q57: 906.5310568 | R57: 956.0294871 | S57: 35.84328732 | T57: 49.49843021 | U57: 1 | V57: 0 | W57: 52 | X57: 1264.893208 | Y57: 2113.777187 | Z57: 3378.670395 | AA57: 211.8683634 | AB57: 1476.761572 | AC57: 100 | AD57: 1.431359827 | AE57: 2.2878916 | AF57: 21.13777187 | AG57: 33.78670395 | AH57: 12.64893208 | AI57: 14.34682263 | AJ57: 85.65317737
H58: 0.5746399106 | I58: 0.7367553014 | J58: 0.3003823249 | K58: 0.7860924647 | L58: 11.50191162 | M58: 9.600451401 | N58: 53 | O58: 12.822288 | P58: 21.10236303 | Q58: 913.6372057 | R58: 977.1318501 | S58: 42.39228134 | T58: 63.49464437 | U58: 1 | V58: 1 | W58: 53 | X58: 1247.940367 | Y58: 3805.9315 | Z58: 5053.871867 | AA58: 185.7385319 | AB58: 1433.678899 | AC58: 100 | AD58: 2.654661028 | AE58: 3.52510724 | AF58: 38.059315 | AG58: 50.53871867 | AH58: 12.47940367 | AI58: 12.95537878 | AJ58: 87.04462122
H59: 0.03490304114 | I59: 0.5152619202 | J59: 0.8126417682 | K59: 0.8308818152 | L59: 14.06320884 | M59: 7.550454639 | N59: 54 | O59: 0.5329006078 | P59: 21.61366348 | Q59: 926.4594937 | R59: 998.7455136 | S59: 50.67235637 | T59: 72.28601985 | U59: 1 | V59: 1 | W59: 54 | X59: 1230.603353 | Y59: 1266.262561 | Z59: 2496.865914 | AA59: 421.8706127 | AB59: 1652.473966 | AC59: 100 | AD59: 0.766282911 | AE59: 1.510986536 | AF59: 12.66262561 | AG59: 24.96865914 | AH59: 12.30603353 | AI59: 25.52963746 | AJ59: 74.47036254
H60: 0.2729858274 | I60: 0.6813992112 | J60: 0.01131863238 | K60: 0.4707047483 | L60: 10.05659316 | M60: 9.582564105 | N60: 55 | O60: 4.782139605 | P60: 19.63915727 | Q60: 926.9923943 | R60: 1018.384671 | S60: 71.75311924 | T60: 91.39227651 | U60: 1 | V60: 1 | W60: 55 | X60: 1252.798006 | Y60: 3141.61155 | Z60: 4394.409556 | AA60: 161.7144754 | AB60: 1414.512481 | AC60: 100 | AD60: 2.220985386 | AE60: 3.106660149 | AF60: 31.4161155 | AG60: 43.94409556 | AH60: 12.52798006 | AI60: 11.43252375 | AJ60: 88.56747625
H61: 0.362845805 | I61: 0.7406667227 | J61: 0.2147945389 | K61: 0.2940601373 | L61: 11.07397269 | M61: 9.077524214 | N61: 56 | O61: 6.761153825 | P61: 20.15149691 | Q61: 931.7745339 | R61: 1038.536168 | S61: 86.61013691 | T61: 106.7616338 | U61: 1 | V61: 1 | W61: 56 | X61: 1244.332158 | Y61: 751.0784356 | Z61: 1995.410593 | AA61: 467.8467293 | AB61: 1712.178887 | AC61: 100 | AD61: 0.438668203 | AE61: 1.165421796 | AF61: 7.510784356 | AG61: 19.95410593 | AH61: 12.44332158 | AI61: 27.32464072 | AJ61: 72.67535928
H62: 0.1837150193 | I62: 0.5497303819 | J62: 0.274753332 | K62: 0.9399336422 | L62: 11.37376666 | M62: 8.755949762 | N62: 57 | O62: 3.044876159 | P62: 20.12971642 | Q62: 938.5356878 | R62: 1058.665884 | S62: 100.00048 | T62: 120.1301964 | U62: 1 | V62: 1 | W62: 57 | X62: 1258.35414 | Y62: 591.2636308 | Z62: 1849.617771 | AA62: 554.9360397 | AB62: 1813.290179 | AC62: 100 | AD62: 0.3260722622 | AE62: 1.020034075 | AF62: 5.912636308 | AG62: 18.49617771 | AH62: 12.5835414 | AI62: 30.60381874 | AJ62: 69.39618126
H63: 0.8073441604 | I63: 0.5352547465 | J63: 0.4583077525 | K63: 0.2744855425 | L63: 12.29153876 | M63: 7.628116355 | N63: 58 | O63: 24.70274845 | P63: 19.91965512 | Q63: 941.5805639 | R63: 1078.585539 | S63: 117.0853203 | T63: 137.0049754 | U63: 1 | V63: 1 | W63: 58 | X63: 1227.719313 | Y63: 6631.842246 | Z63: 7859.561559 | AA63: 156.3158636 | AB63: 1384.035177 | AC63: 100 | AD63: 4.79167174 | AE63: 5.678729623 | AF63: 66.31842246 | AG63: 78.59561559 | AH63: 12.27719313 | AI63: 11.29421175 | AJ63: 88.70578825
H64: 0.1121934026 | I64: 0.8879598398 | J64: 0.03507194129 | K64: 0.2990924705 | L64: 0 | M64: 9.048523636 | N64: 59 | O64: 1.785020331 | P64: 9.048523636 | Q64: 966.2833124 | R64: 1087.634063 | S64: 112.3022269 | T64: 121.3507506 | U64: 0 | V64: 1 | W64: 59 | X64: 1235.774358 | Y64: 1533.569582 | Z64: 2769.34394 | AA64: 400.9824009 | AB64: 1636.756759 | AC64: 100 | AD64: 0.9369563157 | AE64: 1.691970371 | AF64: 15.33569582 | AG64: 27.6934394 | AH64: 12.35774358 | AI64: 24.49859448 | AJ64: 75.50140552
H65: 0.459291258 | I65: 0.04006354029 | J65: 0.2708336452 | K65: 0.545309243 | L65: 11.35416823 | M65: 0 | N65: 60 | O65: 9.223117721 | P65: 11.35416823 | Q65: 968.0683327 | R65: 1098.988231 | S65: 119.5657302 | T65: 130.9198985 | U65: 1 | V65: 0 | W65: 60 | X65: 1266.317332 | Y65: 1780.359935 | Z65: 3046.677266 | AA65: 449.1037155 | AB65: 1715.421047 | AC65: 100 | AD65: 1.037855947 | AE65: 1.776052166 | AF65: 17.80359935 | AG65: 30.46677266 | AH65: 12.66317332 | AI65: 26.18037806 | AJ65: 73.81962194
H66: 0.2722687485 | I66: 0.8004337843 | J66: 0.6696271369 | K66: 0.005084721095 | L66: 0 | M66: 9.889556654 | N66: 61 | O66: 4.767351884 | P66: 9.889556654 | Q66: 977.2914504 | R66: 1108.877788 | S66: 121.6967807 | T66: 131.5863374 | U66: 0 | V66: 1 | W66: 61 | X66: 1261.405235 | Y66: 787.1071788 | Z66: 2048.512413 | AA66: 477.2573229 | AB66: 1738.662558 | AC66: 100 | AD66: 0.4527084197 | AE66: 1.178211611 | AF66: 7.871071788 | AG66: 20.48512413 | AH66: 12.61405235 | AI66: 27.44968084 | AJ66: 72.55031916
H67: 0.1764888326 | I67: 0.4528609347 | J67: 0.5244140778 | K67: 0.9904840183 | L67: 12.62207039 | M67: 0 | N67: 62 | O67: 2.912672529 | P67: 12.62207039 | Q67: 982.0588023 | R67: 1121.499858 | S67: 126.8189855 | T67: 139.4410559 | U67: 1 | V67: 0 | W67: 62 | X67: 1231.575365 | Y67: 2231.584293 | Z67: 3463.159658 | AA67: 381.9482547 | AB67: 1613.52362 | AC67: 100 | AD67: 1.383050279 | AE67: 2.146333413 | AF67: 22.31584293 | AG67: 34.63159658 | AH67: 12.31575365 | AI67: 23.67168661 | AJ67: 76.32831339
H68: =RAND() -> 0.2773524749 | I68: 0.8310803641 | J68: 0.7994530935 | K68: 0.1304976187 | L68: 0 | M68: 8.878801558 | N68: 63 | O68: 4.872505393 | P68: 8.878801558 | Q68: 984.9714748 | R68: 1130.37866 | S68: 136.5283834 | T68: 145.4071849 | U68: 0 | V68: 1 | W68: 63 | X68: 1243.556613 | Y68: 5732.897019 | Z68: 6976.453632 | AA68: 144.5978583 | AB68: 1388.154471 | AC68: 100 | AD68: 4.12986965 | AE68: 5.025704111 | AF68: 57.32897019 | AG68: 69.76453632 | AH68: 12.43556613 | AI68: 10.41655387 | AJ68: 89.58344613
H69: 0.5136024169 | I69: 0.3709963379 | J69: 0.2427528972 | K69: 0.2025279477 | L69: 11.21376449 | M69: 0 | N69: 64 | O69: 10.81093376 | P69: 11.21376449 | Q69: 989.8439802 | R69: 1141.592424 | S69: 140.5346795 | T69: 151.748444 | U69: 1 | V69: 0 | W69: 64 | X69: 1246.754976 | Y69: 2177.724603 | Z69: 3424.479578 | AA69: 303.367918 | AB69: 1550.122894 | AC69: 100 | AD69: 1.404872228 | AE69: 2.209166507 | AF69: 21.77724603 | AG69: 34.24479578 | AH69: 12.46754976 | AI69: 19.57057207 | AJ69: 80.42942793
H70: 0.492364938 | I70: 0.6923343931 | J70: 0.6877168479 | K70: 0.3462005515 | L70: 13.43858424 | M70: 7.855040115 | N70: 65 | O70: =-$D$6*LN(1-H70) -> 10.16988707 | P70: 21.29362435 | Q70: 1000.654914 | R70: 1162.886049 | S70: 140.9375103 | T70: 162.2311346 | U70: 1 | V70: 1 | W70: 65 | X70: 1269.492022 | Y70: 1986.618249 | Z70: 3256.110272 | AA70: 394.9971373 | AB70: 1664.48916 | AC70: 100 | AD70: 1.193530302 | AE70: 1.956221975 | AF70: 19.86618249 | AG70: 32.56110272 | AH70: 12.69492022 | AI70: 23.73083267 | AJ70: 76.26916733
H71: 0.07676314889 | I71: 0.5018498833 | J71: 0.78738009 | K71: 0.1172673847 | L71: =IF(I71<0.75,+$E$7+J71*($G$7-$E$7),0) -> 13.93690045 | M71: =IF(I71>0.5,SQRT(25+75*RAND()),0) -> 7.759727302 | N71: 66 | O71: 1.19804201 | P71: =+L71+M71 -> 21.69662775 | Q71: 1010.824801 | R71: 1184.582676 | S71: 152.0612475 | T71: 173.7578753 | U71: =IF(L71>0,1,0) -> 1 | V71: =IF(M71>0,1,0) -> 1 | W71: 66 | X71: 1227.662481 | Y71: 1377.712792 | Z71: 2605.375273 | AA71: 298.5885465 | AB71: 1526.251027 | AC71: 100 | AD71: 0.9026777161 | AE71: 1.707042436 | AF71: 13.77712792 | AG71: 26.05375273 | AH71: 12.27662481 | AI71: 19.56352796 | AJ71: 80.43647204
H72: 0.1821022909 | I72: 0.1697300727 | J72: 0.8046672374 | K72: 0.9894282663 | L72: 14.02333619 | M72: 0 | N72: 67 | O72: 3.015270002 | P72: 14.02333619 | Q72: 1012.022843 | R72: 1198.606013 | S72: 172.5598333 | T72: 186.5831695 | U72: 1 | V72: 0 | W72: =+W71+1 -> 67 | X72: 1251.48839 | Y72: 1888.797145 | Z72: 3140.285535 | AA72: 182.902678 | AB72: 1434.391068 | AC72: 100 | AD72: 1.316793716 | AE72: 2.189281295 | AF72: 18.88797145 | AG72: 31.40285535 | AH72: 12.5148839 | AI72: 12.75124211 | AJ72: 87.24875789
H73: 0.8823042153 | I73: 0.1466455269 | J73: 0.942556986 | K73: 0.4245523255 | L73: 14.71278493 | M73: 0 | N73: 68 | O73: 32.09478119 | P73: 14.71278493 | Q73: 1015.038113 | R73: 1213.318797 | S73: 183.5678995 | T73: 198.2806844 | U73: 1 | V73: 0 | W73: 68 | X73: 1273.855593 | Y73: 3056.780999 | Z73: 4330.636593 | AA73: 325.0699531 | AB73: 1598.925547 | AC73: 100 | AD73: 1.911771943 | AE73: 2.708466696 | AF73: 30.56780999 | AG73: 43.30636593 | AH73: 12.73855593 | AI73: 20.33052469 | AJ73: 79.66947531
H74: 0.5868395631 | I74: 0.1060826864 | J74: 0.004177237339 | K74: 0.6029911262 | L74: 10.02088619 | M74: 0 | N74: 69 | O74: 13.25878941 | P74: 10.02088619 | Q74: 1047.132894 | R74: 1223.339684 | S74: 166.1859032 | T74: 176.2067894 | U74: 1 | V74: 0 | W74: 69 | X74: 1276.057542 | Y74: 1808.521168 | Z74: 3084.57871 | AA74: 225.412954 | AB74: 1501.470496 | AC74: 100 | AD74: 1.204499971 | AE74: 2.054371843 | AF74: 18.08521168 | AG74: 30.8457871 | AH74: 12.76057542 | AI74: 15.01281275 | AJ74: 84.98718725
H75: 0.250928539 | I75: 0.2784599 | J75: 0.2019201288 | K75: 0.4979057757 | L75: 11.00960064 | M75: 0 | N75: 70 | O75: 4.333813373 | P75: 11.00960064 | Q75: 1060.391684 | R75: 1234.349284 | S75: 162.948 | T75: 173.9576006 | U75: 1 | V75: 0 | W75: 70 | X75: 1228.074942 | Y75: 1811.049441 | Z75: 3039.124383 | AA75: 322.3931202 | AB75: 1550.468063 | AC75: 100 | AD75: 1.168066266 | AE75: 1.960133496 | AF75: 18.11049441 | AG75: 30.39124383 | AH75: 12.28074942 | AI75: 20.79327707 | AJ75: 79.20672293
H76: 0.01674647913 | I76: 0.1201697501 | J76: 0.006919875335 | K76: 0.1545751637 | L76: 10.03459938 | M76: 0 | N76: 71 | O76: 0.2533243024 | P76: 10.03459938 | Q76: 1064.725497 | R76: 1244.383884 | S76: 169.6237872 | T76: 179.6583866 | U76: 1 | V76: 0 | W76: 71 | X76: 1251.188277 | Y76: 1310.872431 | Z76: 2562.060708 | AA76: 433.2827046 | AB76: 1684.470981 | AC76: 100 | AD76: 0.7782101594 | AE76: 1.520988332 | AF76: 13.10872431 | AG76: 25.62060708 | AH76: 12.51188277 | AI76: 25.72218277 | AJ76: 74.27781723
H77: 0.3254212 | I77: 0.8058976406 | J77: 0.9246026562 | K77: 0.09250424141 | L77: 0 | M77: 5.747079784 | N77: 72 | O77: 5.905001744 | P77: 5.747079784 | Q77: 1064.978821 | R77: 1250.130963 | S77: 179.4050623 | T77: 185.1521421 | U77: 0 | V77: 1 | W77: 72 | X77: 1246.192242 | Y77: 1789.993044 | Z77: 3036.185285 | AA77: 337.6872511 | AB77: 1583.879493 | AC77: 100 | AD77: 1.130132091 | AE77: 1.916929475 | AF77: 17.89993044 | AG77: 30.36185285 | AH77: 12.46192242 | AI77: 21.32026159 | AJ77: 78.67973841
H78: 0.12494665 | I78: 0.05734768235 | J78: 0.4461842822 | K78: 0.7140731615 | L78: 12.23092141 | M78: 0 | N78: 73 | O78: 2.002056346 | P78: 12.23092141 | Q78: 1070.883823 | R78: 1262.361885 | S78: 179.2471404 | T78: 191.4780618 | U78: 1 | V78: 0 | W78: 73 | X78: 1241.133743 | Y78: 1349.326398 | Z78: 2590.460141 | AA78: 590.4240984 | AB78: 1831.557841 | AC78: 100 | AD78: 0.736709684 | AE78: 1.414347984 | AF78: 13.49326398 | AG78: 25.90460141 | AH78: 12.41133743 | AI78: 32.23616995 | AJ78: 67.76383005
H79: 0.8783329422 | I79: 0.9881048985 | J79: 0.248446219 | K79: 0.4623842433 | L79: 0 | M79: 5.922078945 | N79: 74 | O79: 31.59700499 | P79: 5.922078945 | Q79: 1072.885879 | R79: 1268.283964 | S79: 189.4760054 | T79: 195.3980844 | U79: 0 | V79: 1 | W79: 74 | X79: 1263.047294 | Y79: 1170.567633 | Z79: 2433.614927 | AA79: 390.3154929 | AB79: 1653.362787 | AC79: 100 | AD79: 0.7079920043 | AE79: 1.471918291 | AF79: 11.70567633 | AG79: 24.33614927 | AH79: 12.63047294 | AI79: 23.60737135 | AJ79: 76.39262865
H80: 0.6191559326 | I80: 0.1931471168 | J80: 0.7949728765 | K80: 0.2518962888 | L80: 13.97486438 | M80: 0 | N80: 75 | O80: 14.48047889 | P80: 13.97486438 | Q80: 1104.482884 | R80: 1282.258828 | S80: 163.8010794 | T80: 177.7759438 | U80: 1 | V80: 0 | W80: 75 | X80: 1269.058974 | Y80: 3424.672904 | Z80: 4693.731878 | AA80: 152.0243922 | AB80: 1421.083366 | AC80: 100 | AD80: 2.409902886 | AE80: 3.302925072 | AF80: 34.24672904 | AG80: 46.93731878 | AH80: 12.69058974 | AI80: 10.69778141 | AJ80: 89.30221859
H81: 0.2264426733 | I81: 0.4741782997 | J81: 0.4613250645 | K81: 0.7207780121 | L81: 12.30662532 | M81: 0 | N81: 76 | O81: 3.851332475 | P81: 12.30662532 | Q81: 1118.963363 | R81: 1294.565454 | S81: 163.2954649 | T81: 175.6020902 | U81: 1 | V81: 0 | W81: 76 | X81: 1242.958653 | Y81: 4354.089052 | Z81: 5597.047705 | AA81: 48.08712847 | AB81: 1291.045781 | AC81: 100 | AD81: 3.372528779 | AE81: 4.33528213 | AF81: 43.54089052 | AG81: 55.97047705 | AH81: 12.42958653 | AI81: 3.724664854 | AJ81: 96.27533515
H82: 0.8856450783 | I82: 0.8633462058 | J82: 0.895725488 | K82: 0.9301695687 | L82: 0 | M82: 9.273502617 | N82: 77 | O82: 32.52672479 | P82: 9.273502617 | Q82: 1122.814696 | R82: 1303.838956 | S82: 171.7507577 | T82: 181.0242603 | U82: 0 | V82: 1 | W82: 77 | X82: 1249.666911 | Y82: 1467.474105 | Z82: 2717.141016 | AA82: 318.2143109 | AB82: 1567.881222 | AC82: 100 | AD82: 0.9359599981 | AE82: 1.733001823 | AF82: 14.67474105 | AG82: 27.17141016 | AH82: 12.49666911 | AI82: 20.29581747 | AJ82: 79.70418253
H83: 0.1518221424 | I83: 0.6225783275 | J83: 0.3326696634 | K83: 0.573722215 | L83: 11.66334832 | M83: 9.028544254 | N83: 78 | O83: 2.469973911 | P83: 20.69189257 | Q83: 1155.341421 | R83: 1324.530849 | S83: 148.4975356 | T83: 169.1894281 | U83: 1 | V83: 1 | W83: 78 | X83: 1235.467668 | Y83: 5053.906896 | Z83: 6289.374565 | AA83: 132.2626999 | AB83: 1367.730368 | AC83: 100 | AD83: 3.695104688 | AE83: 4.598402368 | AF83: 50.53906896 | AG83: 62.89374565 | AH83: 12.35467668 | AI83: 9.670232011 | AJ83: 90.32976799
H84: 0.4275209677 | I84: 0.4733244309 | J84: 0.1998889073 | K84: 0.02185188742 | L84: 10.99944454 | M84: 0 | N84: 79 | O84: 8.366687535 | P84: 10.99944454 | Q84: 1157.811394 | R84: 1335.530293 | S84: 166.7194542 | T84: 177.7188987 | U84: 1 | V84: 0 | W84: 79 | X84: 1256.960796 | Y84: 1442.875749 | Z84: 2699.836545 | AA84: 453.6775062 | AB84: 1710.638302 | AC84: 100 | AD84: 0.84347214 | AE84: 1.578262653 | AF84: 14.42875749 | AG84: 26.99836545 | AH84: 12.56960796 | AI84: 26.52094868 | AJ84: 73.47905132
H85: 0.6641517124 | I85: 0.4716309804 | J85: 0.5643223922 | K85: 0.1253761071 | L85: 12.82161196 | M85: 0 | N85: 80 | O85: 16.36643619 | P85: 12.82161196 | Q85: 1166.178082 | R85: 1348.351905 | S85: 169.3522112 | T85: 182.1738232 | U85: 1 | V85: 0 | W85: 80 | X85: 1220.862329 | Y85: 1903.409697 | Z85: 3124.272027 | AA85: 348.382944 | AB85: 1569.245273 | AC85: 100 | AD85: 1.212945949 | AE85: 1.990939262 | AF85: 19.03409697 | AG85: 31.24272027 | AH85: 12.20862329 | AI85: 22.20066869 | AJ85: 77.79933131
H86: 0.0704556544 | I86: 0.5625249829 | J86: 0.008135557943 | K86: 0.2375316475 | L86: 10.04067779 | M86: 8.568382851 | N86: 81 | O86: 1.095911458 | P86: 18.60906064 | Q86: 1182.544518 | R86: 1366.960966 | S86: 165.807387 | T86: 184.4164476 | U86: 1 | V86: 1 | W86: 81 | X86: 1264.29834 | Y86: 2549.594392 | Z86: 3813.892732 | AA86: 558.700757 | AB86: 1822.999097 | AC86: 100 | AD86: 1.398571396 | AE86: 2.092097982 | AF86: 25.49594392 | AG86: 38.13892732 | AH86: 12.6429834 | AI86: 30.6473414 | AJ86: 69.3526586
H87: 0.8245574912 | I87: 0.6237359039 | J87: 0.02036298637 | K87: 0.557481688 | L87: 10.10181493 | M87: 7.508849382 | N87: 82 | O87: 26.10665813 | P87: 17.61066431 | Q87: 1183.64043 | R87: 1384.57163 | S87: 183.3205362 | T87: 200.9312005 | U87: 1 | V87: 1 | W87: 82 | X87: 1253.677164 | Y87: 2204.296853 | Z87: 3457.974017 | AA87: 279.3619315 | AB87: 1533.039096 | AC87: 100 | AD87: 1.437860821 | AE87: 2.255633289 | AF87: 22.04296853 | AG87: 34.57974017 | AH87: 12.53677164 | AI87: 18.22275324 | AJ87: 81.77724676
H88: 0.3287915214 | I88: 0.9216963717 | J88: 0.2347600983 | K88: 0.05946681376 | L88: 0 | M88: 7.455905851 | N88: 83 | O88: 5.980132379 | P88: 7.455905851 | Q88: 1209.747088 | R88: 1392.027536 | S88: 174.8245424 | T88: 182.2804482 | U88: 0 | V88: 1 | W88: 83 | X88: 1261.799702 | Y88: 7793.295814 | Z88: 9055.095516 | AA88: 37.19980783 | AB88: 1298.99951 | AC88: 100 | AD88: 5.999460167 | AE88: 6.97082289 | AF88: 77.93295814 | AG88: 90.55095516 | AH88: 12.61799702 | AI88: 2.863727627 | AJ88: 97.13627237
H89: 0.259568415 | I89: 0.7339873782 | J89: 0.0660319052 | K89: 0.7004069666 | L89: 10.33015953 | M89: 9.297443801 | N89: 84 | O89: 4.507830598 | P89: 19.62760333 | Q89: 1215.72722 | R89: 1411.655139 | S89: 176.3003158 | T89: 195.9279192 | U89: 1 | V89: 1 | W89: 84 | X89: 1227.324299 | Y89: 3256.598295 | Z89: 4483.922594 | AA89: 363.3470609 | AB89: 1590.67136 | AC89: 100 | AD89: 2.047310574 | AE89: 2.81888686 | AF89: 32.56598295 | AG89: 44.83922594 | AH89: 12.27324299 | AI89: 22.84237148 | AJ89: 77.15762852
H90: 0.9644542015 | I90: 0.9522557099 | J90: 0.9909775738 | K90: 0.8804222198 | L90: 0 | M90: 5.698400125 | N90: 85 | O90: 50.05399973 | P90: 5.698400125 | Q90: 1220.235051 | R90: 1417.353539 | S90: 191.4200886 | T90: 197.1184887 | U90: 0 | V90: 1 | W90: 85 | X90: 1237.905885 | Y90: 2748.306913 | Z90: 3986.212798 | AA90: 308.4930793 | AB90: 1546.398964 | AC90: 100 | AD90: 1.777230183 | AE90: 2.577738922 | AF90: 27.48306913 | AG90: 39.86212798 | AH90: 12.37905885 | AI90: 19.94912609 | AJ90: 80.05087391
H91: 0.8840217981 | I91: 0.09431815028 | J91: 0.7853254236 | K91: 0.5669384564 | L91: 13.92662712 | M91: 0 | N91: 86 | O91: 32.3152953 | P91: 13.92662712 | Q91: 1270.28905 | R91: 1431.280167 | S91: 147.064489 | T91: 160.9911161 | U91: 1 | V91: 0 | W91: 86 | X91: 1260.369759 | Y91: 2269.85761 | Z91: 3530.227369 | AA91: 250.0262748 | AB91: 1510.396034 | AC91: 100 | AD91: 1.502822808 | AE91: 2.33728591 | AF91: 22.6985761 | AG91: 35.30227369 | AH91: 12.60369759 | AI91: 16.55368984 | AJ91: 83.44631016
H92: 0.792159712 | I92: 0.7764644121 | J92: 0.1463699536 | K92: 0.8040504319 | L92: 0 | M92: 9.733813451 | N92: 87 | O92: 23.5647801 | P92: 9.733813451 | Q92: 1302.604346 | R92: 1441.01398 | S92: 128.6758208 | T92: 138.4096342 | U92: 0 | V92: 1 | W92: 87 | X92: 1264.884874 | Y92: 2205.946816 | Z92: 3470.831691 | AA92: 360.2809225 | AB92: 1625.165797 | AC92: 100 | AD92: 1.357367242 | AE92: 2.135678524 | AF92: 22.05946816 | AG92: 34.70831691 | AH92: 12.64884874 | AI92: 22.16887183 | AJ92: 77.83112817
H93: 0.1017820344 | I93: 0.5735355801 | J93: 0.1662126344 | K93: 0.4067081232 | L93: 10.83106317 | M93: 7.569949423 | N93: 88 | O93: 1.610137752 | P93: 18.4010126 | Q93: 1326.169126 | R93: 1459.414993 | S93: 114.8448541 | T93: 133.2458667 | U93: 1 | V93: 1 | W93: 88 | X93: 1257.894623 | Y93: 1510.250469 | Z93: 2768.145092 | AA93: 281.0608188 | AB93: 1538.955441 | AC93: 100 | AD93: 0.9813477562 | AE93: 1.798716855 | AF93: 15.10250469 | AG93: 27.68145092 | AH93: 12.57894623 | AI93: 18.2630901 | AJ93: 81.7369099
H94: 0.3290134627 | I94: 0.950376562 | J94: 0.2062433202 | K94: 0.8243782171 | L94: 0 | M94: 9.178065332 | N94: 89 | O94: 5.985093087 | P94: 9.178065332 | Q94: 1327.779264 | R94: 1468.593058 | S94: 131.635729 | T94: 140.8137943 | U94: 0 | V94: 1 | W94: 89 | X94: 1231.455706 | Y94: 5482.81758 | Z94: 6714.273286 | AA94: 142.9055023 | AB94: 1374.361209 | AC94: 100 | AD94: 3.989357052 | AE94: 4.885377471 | AF94: 54.8281758 | AG94: 67.14273286 | AH94: 12.31455706 | AI94: 10.39795808 | AJ94: 89.60204192
H95: 0.252246891 | I95: 0.4284133608 | J95: 0.1963424317 | K95: 0.7175653895 | L95: 10.98171216 | M95: 0 | N95: 90 | O95: 4.360236355 | P95: 10.98171216 | Q95: 1333.764357 | R95: 1479.57477 | S95: 134.8287012 | T95: 145.8104134 | U95: 1 | V95: 0 | W95: 90 | X95: 1275.651364 | Y95: 1964.036771 | Z95: 3239.688135 | AA95: 189.0134259 | AB95: 1464.66479 | AC95: 100 | AD95: 1.340946259 | AE95: 2.211897328 | AF95: 19.64036771 | AG95: 32.39688135 | AH95: 12.75651364 | AI95: 12.90489313 | AJ95: 87.09510687
H96: 0.9443389214 | I96: 0.4062451046 | J96: 0.433953778 | K96: 0.8515250452 | L96: 12.16976889 | M96: 0 | N96: 91 | O96: 43.32711218 | P96: 12.16976889 | Q96: 1338.124593 | R96: 1491.744539 | S96: 141.450177 | T96: 153.6199459 | U96: 1 | V96: 0 | W96: 91 | X96: 1246.124609 | Y96: 4099.417692 | Z96: 5345.5423 | AA96: 194.1457021 | AB96: 1440.270311 | AC96: 100 | AD96: 2.846283549 | AE96: 3.711485448 | AF96: 40.99417692 | AG96: 53.455423 | AH96: 12.46124609 | AI96: 13.47981005 | AJ96: 86.52018995
H97: 0.419424723 | I97: 0.003991591009 | J97: 0.04948693401 | K97: 0.1839669123 | L97: 10.24743467 | M97: 0 | N97: 92 | O97: 8.156037151 | P97: 10.24743467 | Q97: 1381.451705 | R97: 1501.991974 | S97: 110.2928337 | T97: 120.5402684 | U97: 1 | V97: 0 | W97: 92 | X97: 1253.005218 | Y97: 3136.054089 | Z97: 4389.059307 | AA97: 197.5266518 | AB97: 1450.53187 | AC97: 100 | AD97: 2.162002886 | AE97: 3.025827559 | AF97: 31.36054089 | AG97: 43.89059307 | AH97: 12.53005218 | AI97: 13.61753271 | AJ97: 86.38246729
H98: 0.9008997598 | I98: 0.2265554657 | J98: 0.368733125 | K98: 0.3561169901 | L98: 11.84366563 | M98: 0 | N98: 93 | O98: 34.67435121 | P98: 11.84366563 | Q98: 1389.607742 | R98: 1513.835639 | S98: 112.3842312 | T98: 124.2278969 | U98: 1 | V98: 0 | W98: 93 | X98: 1265.042189 | Y98: 3086.199597 | Z98: 4351.241786 | AA98: 388.4263882 | AB98: 1653.468577 | AC98: 100 | AD98: 1.866500301 | AE98: 2.631584202 | AF98: 30.86199597 | AG98: 43.51241786 | AH98: 12.65042189 | AI98: 23.49160991 | AJ98: 76.50839009
H99: 0.8088514374 | I99: 0.8398736808 | J99: 0.07409697753 | K99: 0.4204083432 | L99: 0 | M99: 7.731278773 | N99: 94 | O99: 24.82056508 | P99: 7.731278773 | Q99: 1424.282094 | R99: 1521.566918 | S99: 89.55354565 | T99: 97.28482443 | U99: 0 | V99: 1 | W99: 94 | X99: 1257.252132 | Y99: 4072.100621 | Z99: 5329.352754 | AA99: 133.5845215 | AB99: 1390.836654 | AC99: 100 | AD99: 2.927806519 | AE99: 3.831760358 | AF99: 40.72100621 | AG99: 53.29352754 | AH99: 12.57252132 | AI99: 9.604616122 | AJ99: 90.39538388
H100: 0.7219234498 | I100: 0.2982195008 | J100: 0.1060536123 | K100: 0.05766332981 | L100: 10.53026806 | M100: 0 | N100: 95 | O100: 19.19788264 | P100: 10.53026806 | Q100: 1449.102659 | R100: 1532.097186 | S100: 72.46425935 | T100: 82.99452741 | U100: 1 | V100: 0 | W100: 95 | X100: 1243.573473 | Y100: 2424.913561 | Z100: 3668.487034 | AA100: 352.5887983 | AB100: 1596.162272 | AC100: 100 | AD100: 1.519214934 | AE100: 2.298317094 | AF100: 24.24913561 | AG100: 36.68487034 | AH100: 12.43573473 | AI100: 22.08978401 | AJ100: 77.91021599
H101: 0.7003795013 | I101: 0.9772363408 | J101: 0.1193944114 | K101: 0.9742399001 | L101: 0 | M101: 9.346831135 | N101: 96 | O101: 18.07857914 | P101: 9.346831135 | Q101: 1468.300541 | R101: 1541.444017 | S101: 63.79664477 | T101: 73.1434759 | U101: 0 | V101: 1 | W101: 96 | X101: 1266.297688 | Y101: 3081.180719 | Z101: 4347.478406 | AA101: 108.539085 | AB101: 1374.836773 | AC101: 100 | AD101: 2.24112475 | AE101: 3.162177862 | AF101: 30.81180719 | AG101: 43.47478406 | AH101: 12.66297688 | AI101: 7.894688824 | AJ101: 92.10531118
H102: 0.06469186446 | I102: 0.9162847341 | J102: 0.09561434232 | K102: 0.3421563612 | L102: 0 | M102: 5.767587205 | N102: 97 | O102: 1.003188709 | P102: 5.767587205 | Q102: 1486.37912 | R102: 1547.211604 | S102: 55.06489676 | T102: 60.83248397 | U102: 0 | V102: 1 | W102: 97 | X102: 1231.179248 | Y102: 1382.23799 | Z102: 2613.417238 | AA102: 309.8174071 | AB102: 1540.996655 | AC102: 100 | AD102: 0.8969766321 | AE102: 1.695926613 | AF102: 13.8223799 | AG102: 26.13417238 | AH102: 12.31179248 | AI102: 20.10500192 | AJ102: 79.89499808
H103: 0.09987704625 | I103: 0.1420597433 | J103: 0.5704180648 | K103: 0.4552061041 | L103: 12.85209032 | M103: 0 | N103: 98 | O103: 1.578358646 | P103: 12.85209032 | Q103: 1487.382309 | R103: 1560.063695 | S103: 59.82929526 | T103: 72.68138558 | U103: 1 | V103: 0 | W103: 98 | X103: 1225.33494 | Y103: 1538.303043 | Z103: 2763.637983 | AA103: 282.1920787 | AB103: 1507.527019 | AC103: 100 | AD103: 1.020414907 | AE103: 1.83322617 | AF103: 15.38303043 | AG103: 27.63637983 | AH103: 12.2533494 | AI103: 18.71887371 | AJ103: 81.28112629
H104: 0.6647947869 | I104: 0.4482202207 | J104: 0.4499379269 | K104: 0.2967362725 | L104: 12.24968963 | M104: 0 | N104: 99 | O104: 16.39518537 | P104: 12.24968963 | Q104: 1488.960668 | R104: 1572.313384 | S104: 71.10302694 | T104: 83.35271657 | U104: 1 | V104: 0 | W104: 99 | X104: 1244.068105 | Y104: 1910.326048 | Z104: 3154.394153 | AA104: 325.179911 | AB104: 1569.248016 | AC104: 100 | AD104: 1.217351259 | AE104: 2.010131045 | AF104: 19.10326048 | AG104: 31.54394153 | AH104: 12.44068105 | AI104: 20.72202149 | AJ104: 79.27797851
H105: 0.9911073644 | I105: 0.7707737123 | J105: 0.6350312785 | K105: 0.06799032526 | L105: 0 | M105: 8.08729787 | N105: 100 | O105: 70.83797708 | P105: 8.08729787 | Q105: 1505.355853 | R105: 1580.400682 | S105: 66.9575312 | T105: 75.04482907 | U105: 0 | V105: 1 | W105: 100 | X105: 1287.9077 | Y105: 959.9828137 | Z105: 2247.890513 | AA105: 502.5367801 | AB105: 1790.44448 | AC105: 100 | AD105: 0.5361701101 | AE105: 1.255493001 | AF105: 9.599828137 | AG105: 22.47890513 | AH105: 12.879077 | AI105: 28.06771088 | AJ105: 71.93228912
U106: =SUM(U6:U105) -> 75 | V106: =SUM(V6:V105) -> 52
